[Event "Early-Titled-Tuesday-Blitz-March-05-2024"]
[Site "Chess.com"]
[Date "2024.03.05"]
[Round "3"]
[White "karinachess1"]
[Black "sorch29"]
[Result "1-0"]
[WhiteElo "2590"]
[BlackElo "2422"]
[TimeControl "180+1"]
[EndTime "8:30:22 PST"]
[Termination "karinachess1 won by resignation"]

1. d4 {[%clk 0:03:00.9]} 1... Nf6 {[%clk 0:02:59.7]} 2. c4 {[%clk 0:03:00.9]}
2... g6 {[%clk 0:03:00.4]} 3. Nc3 {[%clk 0:02:59.4]} 3... Bg7 {[%clk 0:03:00.9]}
4. e4 {[%clk 0:02:56.1]} 4... d6 {[%clk 0:03:01.1]} 5. h4 {[%clk 0:02:56.1]}
5... h5 {[%clk 0:02:52]} 6. Be2 {[%clk 0:02:55.6]} 6... O-O {[%clk 0:02:39.3]}
7. Bg5 {[%clk 0:02:55.3]} 7... c5 {[%clk 0:02:36.2]} 8. d5 {[%clk 0:02:49.5]}
8... e6 {[%clk 0:02:35.7]} 9. Nf3 {[%clk 0:02:44.1]} 9... exd5 {[%clk
0:02:34.6]} 10. cxd5 {[%clk 0:02:29.4]} 10... a6 {[%clk 0:02:27.8]} 11. a4
{[%clk 0:02:29.1]} 11... Bg4 {[%clk 0:02:25.5]} 12. O-O {[%clk 0:02:24.9]} 12...
Nbd7 {[%clk 0:02:22.4]} 13. Nd2 {[%clk 0:02:15.1]} 13... Qc7 {[%clk 0:01:53.5]}
14. f3 {[%clk 0:02:10.7]} 14... Nh7 {[%clk 0:01:23.1]} 15. fxg4 {[%clk
0:02:02.6]} 15... Nxg5 {[%clk 0:01:22.3]} 16. hxg5 {[%clk 0:02:03.5]} 16... Bd4+
{[%clk 0:01:21.5]} 17. Kh1 {[%clk 0:02:02.6]} 17... hxg4 {[%clk 0:01:17.1]} 18.
Bxg4 {[%clk 0:02:00.7]} 18... Kg7 {[%clk 0:01:16.4]} 19. Nf3 {[%clk 0:01:49.3]}
19... Rh8+ {[%clk 0:01:16.2]} 20. Bh3 {[%clk 0:01:49.6]} 20... Ne5 {[%clk
0:00:56.7]} 21. Nxd4 {[%clk 0:01:47.2]} 21... cxd4 {[%clk 0:00:57.6]} 22. Qxd4
{[%clk 0:01:47.4]} 22... Qd7 {[%clk 0:00:43.3]} 23. Rf3 {[%clk 0:01:34]} 23...
Kf8 {[%clk 0:00:16.8]} 24. Raf1 {[%clk 0:01:24.6]} 24... Ke7 {[%clk 0:00:15.3]}
25. Qxe5+ {[%clk 0:01:02.3]} 25... dxe5 {[%clk 0:00:11.8]} 26. Rxf7+ {[%clk
0:01:02.8]} 26... Kd6 {[%clk 0:00:11.4]} 27. Rxd7+ {[%clk 0:01:03]} 27... Kc5
{[%clk 0:00:10.1]} 28. Rc1 {[%clk 0:01:02.6]} 28... Kd4 {[%clk 0:00:10]} 29. d6
{[%clk 0:01:00.3]} 29... Ke3 {[%clk 0:00:08.9]} 30. Rf7 {[%clk 0:00:57.3]} 30...
Rh4 {[%clk 0:00:08.3]} 31. Rd1 {[%clk 0:00:55]} 1-0

[Event "Early-Titled-Tuesday-Blitz-March-05-2024"]
[Site "Chess.com"]
[Date "2024.03.05"]
[Round "3"]
[White "amanjazu"]
[Black "bylavochka"]
[Result "1-0"]
[WhiteElo "2545"]
[BlackElo "2307"]
[TimeControl "180+1"]
[EndTime "8:30:22 PST"]
[Termination "amanjazu won on time"]

1. g3 {[%clk 0:03:00.9]} 1... g6 {[%clk 0:02:59.9]} 2. Bg2 {[%clk 0:03:01.8]}
2... Bg7 {[%clk 0:03:00.4]} 3. f4 {[%clk 0:03:02.5]} 3... Nf6 {[%clk 0:02:58.7]}
4. Nf3 {[%clk 0:03:03]} 4... O-O {[%clk 0:02:58.8]} 5. O-O {[%clk 0:03:03.9]}
5... d6 {[%clk 0:02:57.3]} 6. d3 {[%clk 0:03:04.8]} 6... c6 {[%clk 0:02:54.1]}
7. Nc3 {[%clk 0:03:05.7]} 7... Nbd7 {[%clk 0:02:54.1]} 8. e4 {[%clk 0:03:06.6]}
8... e5 {[%clk 0:02:54]} 9. f5 {[%clk 0:03:06.2]} 9... d5 {[%clk 0:02:51.1]} 10.
Qe2 {[%clk 0:03:05.5]} 10... Re8 {[%clk 0:02:15.7]} 11. h3 {[%clk 0:03:01]}
11... Qc7 {[%clk 0:01:54.7]} 12. g4 {[%clk 0:03:00.5]} 12... b5 {[%clk
0:01:21.9]} 13. Re1 {[%clk 0:02:44.9]} 13... b4 {[%clk 0:01:19.5]} 14. Nd1
{[%clk 0:02:44.8]} 14... dxe4 {[%clk 0:01:14.1]} 15. dxe4 {[%clk 0:02:44.7]}
15... a5 {[%clk 0:01:14.7]} 16. Qf2 {[%clk 0:02:40.7]} 16... Bf8 {[%clk
0:01:11]} 17. Kh1 {[%clk 0:02:35.5]} 17... Nc5 {[%clk 0:00:30.6]} 18. Nh2 {[%clk
0:02:24.2]} 18... Be7 {[%clk 0:00:28.5]} 19. Nf1 {[%clk 0:02:23.5]} 19... Ba6
{[%clk 0:00:26.3]} 20. Ng3 {[%clk 0:02:23]} 20... Rad8 {[%clk 0:00:26.3]} 21. b3
{[%clk 0:02:15.7]} 21... Nb7 {[%clk 0:00:24.6]} 22. Be3 {[%clk 0:02:13]} 22...
c5 {[%clk 0:00:18.6]} 23. g5 {[%clk 0:01:57.6]} 23... Nd7 {[%clk 0:00:16.8]} 24.
f6 {[%clk 0:01:54.7]} 24... Bf8 {[%clk 0:00:15.2]} 25. c4 {[%clk 0:01:53.8]}
25... Nb8 {[%clk 0:00:12.1]} 26. h4 {[%clk 0:01:46.4]} 26... Nc6 {[%clk
0:00:12.4]} 27. Bc1 {[%clk 0:01:41.2]} 27... Rd3 {[%clk 0:00:07.2]} 28. Bf1
{[%clk 0:01:40.4]} 28... Rd4 {[%clk 0:00:06.9]} 29. Bb2 {[%clk 0:01:39.9]} 29...
Red8 {[%clk 0:00:06.9]} 30. Ne3 {[%clk 0:01:34.8]} 30... Rd2 {[%clk 0:00:06.2]}
31. Re2 {[%clk 0:01:35.2]} 31... Rxe2 {[%clk 0:00:05.8]} 32. Bxe2 {[%clk
0:01:36.1]} 32... Nd4 {[%clk 0:00:06.3]} 33. Bg4 {[%clk 0:01:36.3]} 33... Nd6
{[%clk 0:00:04.8]} 34. Nd5 {[%clk 0:01:36.4]} 34... Qb7 {[%clk 0:00:04.2]} 35.
Kg2 {[%clk 0:01:33]} 35... a4 {[%clk 0:00:04.5]} 36. Bxd4 {[%clk 0:01:29.7]}
36... exd4 {[%clk 0:00:02.9]} 37. h5 {[%clk 0:01:26.5]} 37... axb3 {[%clk
0:00:02.9]} 38. axb3 {[%clk 0:01:26.5]} 38... Re8 {[%clk 0:00:01.9]} 39. Bf3
{[%clk 0:01:25.4]} 1-0

[Event "Early-Titled-Tuesday-Blitz-March-05-2024"]
[Site "Chess.com"]
[Date "2024.03.05"]
[Round "3"]
[White "Chessdude1987"]
[Black "TitarovVasiliYouTube"]
[Result "0-1"]
[WhiteElo "2366"]
[BlackElo "2514"]
[TimeControl "180+1"]
[EndTime "8:30:22 PST"]
[Termination "TitarovVasiliYouTube won by resignation"]

1. e4 {[%clk 0:03:00.9]} 1... c5 {[%clk 0:02:58.2]} 2. Nf3 {[%clk 0:03:01.4]}
2... Nf6 {[%clk 0:02:56.4]} 3. e5 {[%clk 0:03:00.2]} 3... Nd5 {[%clk 0:02:56.5]}
4. Nc3 {[%clk 0:03:01.1]} 4... Nxc3 {[%clk 0:02:54.9]} 5. dxc3 {[%clk 0:03:02]}
5... Nc6 {[%clk 0:02:54.4]} 6. Bb5 {[%clk 0:02:59.9]} 6... Qb6 {[%clk
0:02:51.6]} 7. a4 {[%clk 0:02:55.8]} 7... a6 {[%clk 0:02:47]} 8. Bxc6 {[%clk
0:02:55.3]} 8... Qxc6 {[%clk 0:02:46.4]} 9. a5 {[%clk 0:02:54.4]} 9... e6 {[%clk
0:02:15.2]} 10. O-O {[%clk 0:02:52.6]} 10... d5 {[%clk 0:02:13.5]} 11. c4 {[%clk
0:02:27.2]} 11... d4 {[%clk 0:01:56.8]} 12. Bg5 {[%clk 0:02:15.7]} 12... h6
{[%clk 0:01:54.6]} 13. Bh4 {[%clk 0:02:15.4]} 13... g5 {[%clk 0:01:53.5]} 14.
Bg3 {[%clk 0:02:15.5]} 14... Bd7 {[%clk 0:01:50.3]} 15. b4 {[%clk 0:02:12.9]}
15... cxb4 {[%clk 0:01:35.1]} 16. Nxd4 {[%clk 0:02:12.2]} 16... Qxc4 {[%clk
0:01:34.4]} 17. c3 {[%clk 0:01:41.2]} 17... bxc3 {[%clk 0:01:26.7]} 18. Rb1
{[%clk 0:01:40.5]} 18... Ba4 {[%clk 0:01:05.6]} 19. Qh5 {[%clk 0:01:36.8]} 19...
Qxd4 {[%clk 0:00:50.4]} 20. Rxb7 {[%clk 0:01:35.9]} 20... Be7 {[%clk 0:00:40.9]}
21. h4 {[%clk 0:01:28.7]} 21... Bc6 {[%clk 0:00:33.5]} 22. Rd1 {[%clk
0:01:20.1]} 22... Qe4 {[%clk 0:00:29.6]} 23. f3 {[%clk 0:01:17]} 23... Qe3+
{[%clk 0:00:21.5]} 24. Bf2 {[%clk 0:01:16.7]} 24... c2 {[%clk 0:00:17.2]} 25.
Rf1 {[%clk 0:01:01]} 25... c1=Q {[%clk 0:00:13.6]} 26. Bxe3 {[%clk 0:01:00.2]}
26... Qxe3+ {[%clk 0:00:13.8]} 27. Kh2 {[%clk 0:01:00.4]} 27... Bxb7 {[%clk
0:00:14.4]} 0-1

[Event "Early-Titled-Tuesday-Blitz-March-05-2024"]
[Site "Chess.com"]
[Date "2024.03.05"]
[Round "3"]
[White "FoggyMorning"]
[Black "MITerryble"]
[Result "0-1"]
[WhiteElo "2723"]
[BlackElo "3033"]
[TimeControl "180+1"]
[EndTime "8:30:33 PST"]
[Termination "MITerryble won by resignation"]

1. e4 {[%clk 0:03:00.9]} 1... e6 {[%clk 0:03:00.1]} 2. d4 {[%clk 0:03:00.6]}
2... d5 {[%clk 0:03:00.3]} 3. Nc3 {[%clk 0:03:01.3]} 3... Nf6 {[%clk 0:03:00.1]}
4. e5 {[%clk 0:03:01.7]} 4... Nfd7 {[%clk 0:02:58.5]} 5. f4 {[%clk 0:03:02.4]}
5... c5 {[%clk 0:02:59]} 6. Nf3 {[%clk 0:03:03.1]} 6... Nc6 {[%clk 0:02:59.6]}
7. Be3 {[%clk 0:03:03.7]} 7... Be7 {[%clk 0:03:00.2]} 8. Qd2 {[%clk 0:03:03.2]}
8... O-O {[%clk 0:03:00.8]} 9. Be2 {[%clk 0:03:02.4]} 9... b6 {[%clk 0:03:00.4]}
10. O-O {[%clk 0:03:01.9]} 10... f5 {[%clk 0:03:00.7]} 11. exf6 {[%clk
0:02:42.3]} 11... Nxf6 {[%clk 0:03:00.4]} 12. Kh1 {[%clk 0:02:42.5]} 12... Bb7
{[%clk 0:02:50.7]} 13. Rae1 {[%clk 0:02:38]} 13... Rc8 {[%clk 0:02:38.8]} 14.
Bg1 {[%clk 0:02:23.3]} 14... Ne4 {[%clk 0:02:35.6]} 15. Nxe4 {[%clk 0:01:31.7]}
15... dxe4 {[%clk 0:02:35.6]} 16. Ne5 {[%clk 0:01:05.2]} 16... Nxd4 {[%clk
0:02:32.6]} 17. Bc4 {[%clk 0:01:03.1]} 17... Bd5 {[%clk 0:02:29]} 18. c3 {[%clk
0:00:54.2]} 18... Nc6 {[%clk 0:02:24.7]} 19. Nxc6 {[%clk 0:00:40.7]} 19... Rxc6
{[%clk 0:02:25.6]} 20. Qe2 {[%clk 0:00:40.9]} 20... Rd6 {[%clk 0:02:11.7]} 21.
Be3 {[%clk 0:00:39.8]} 21... Bh4 {[%clk 0:02:07.5]} 22. Rc1 {[%clk 0:00:33.6]}
22... Qd7 {[%clk 0:02:04.7]} 23. Bb3 {[%clk 0:00:23.2]} 23... Bxb3 {[%clk
0:02:01.5]} 24. axb3 {[%clk 0:00:23.4]} 24... Rd3 {[%clk 0:02:02.3]} 25. Bg1
{[%clk 0:00:23]} 25... Qd5 {[%clk 0:02:00.6]} 26. g3 {[%clk 0:00:15.4]} 26...
Rd2 {[%clk 0:01:36.4]} 27. Qe3 {[%clk 0:00:12.6]} 27... Bf6 {[%clk 0:01:35.6]}
28. Rce1 {[%clk 0:00:10.5]} 28... Rxb2 {[%clk 0:01:35.5]} 29. Qxe4 {[%clk
0:00:05.2]} 29... Rxb3 {[%clk 0:01:35.2]} 30. Qxd5 {[%clk 0:00:04.1]} 30... exd5
{[%clk 0:01:36.1]} 31. Rd1 {[%clk 0:00:03.9]} 31... Rd8 {[%clk 0:01:35.5]} 32.
g4 {[%clk 0:00:03.6]} 32... Bxc3 {[%clk 0:01:30.4]} 33. f5 {[%clk 0:00:03.8]}
33... d4 {[%clk 0:01:22.3]} 34. g5 {[%clk 0:00:03.7]} 34... Rb2 {[%clk 0:01:22]}
35. f6 {[%clk 0:00:03.6]} 35... Re2 {[%clk 0:01:22.1]} 36. f7+ {[%clk
0:00:02.9]} 36... Kf8 {[%clk 0:01:22.6]} 37. Bf2 {[%clk 0:00:03.3]} 37... Rd7
{[%clk 0:01:21.5]} 38. g6 {[%clk 0:00:03.4]} 38... hxg6 {[%clk 0:01:21.5]} 39.
Bg3 {[%clk 0:00:03.1]} 39... Rxf7 {[%clk 0:01:21.6]} 40. Bd6+ {[%clk 0:00:03.4]}
40... Kg8 {[%clk 0:01:22]} 41. Rg1 {[%clk 0:00:04.3]} 41... Rf6 {[%clk
0:01:21.1]} 42. Bg3 {[%clk 0:00:04]} 42... a5 {[%clk 0:01:20.8]} 43. Rb1 {[%clk
0:00:04.1]} 43... a4 {[%clk 0:01:21]} 44. Bh4 {[%clk 0:00:03.6]} 44... Rfe6
{[%clk 0:01:21.6]} 45. Rbf1 {[%clk 0:00:03.7]} 45... a3 {[%clk 0:01:21.2]} 0-1

[Event "Early-Titled-Tuesday-Blitz-March-05-2024"]
[Site "Chess.com"]
[Date "2024.03.05"]
[Round "3"]
[White "oneshot007"]
[Black "Seochesspie"]
[Result "1-0"]
[WhiteElo "2562"]
[BlackElo "2820"]
[TimeControl "180+1"]
[EndTime "8:30:35 PST"]
[Termination "oneshot007 won by resignation"]

1. e4 {[%clk 0:03:00.9]} 1... c5 {[%clk 0:02:59.6]} 2. Nf3 {[%clk 0:02:49.5]}
2... d6 {[%clk 0:02:59.8]} 3. Bb5+ {[%clk 0:02:48.6]} 3... Nd7 {[%clk
0:02:59.7]} 4. O-O {[%clk 0:02:48.3]} 4... a6 {[%clk 0:02:59.3]} 5. Bd3 {[%clk
0:02:48.5]} 5... g6 {[%clk 0:02:57.8]} 6. c3 {[%clk 0:02:46.5]} 6... Bg7 {[%clk
0:02:58]} 7. Bc2 {[%clk 0:02:47]} 7... Ngf6 {[%clk 0:02:57.5]} 8. d4 {[%clk
0:02:47.5]} 8... e5 {[%clk 0:02:57.8]} 9. a4 {[%clk 0:02:44.2]} 9... O-O {[%clk
0:02:57.6]} 10. d5 {[%clk 0:02:44]} 10... b6 {[%clk 0:02:51]} 11. Nbd2 {[%clk
0:02:38.7]} 11... Nh5 {[%clk 0:02:48.2]} 12. Nc4 {[%clk 0:02:29.4]} 12... Qc7
{[%clk 0:02:48.1]} 13. h3 {[%clk 0:02:24]} 13... Rb8 {[%clk 0:02:42.3]} 14. Bg5
{[%clk 0:02:18.9]} 14... Re8 {[%clk 0:02:39.1]} 15. Qd2 {[%clk 0:02:14.9]} 15...
Bb7 {[%clk 0:01:55.8]} 16. Bd3 {[%clk 0:02:00.4]} 16... b5 {[%clk 0:01:55]} 17.
axb5 {[%clk 0:01:53.8]} 17... axb5 {[%clk 0:01:55.9]} 18. Na3 {[%clk 0:01:54.6]}
18... c4 {[%clk 0:01:50.8]} 19. Nxb5 {[%clk 0:01:41.4]} 19... Qc5 {[%clk
0:01:50.7]} 20. Bxc4 {[%clk 0:01:42]} 20... Qxc4 {[%clk 0:01:51.6]} 21. Nxd6
{[%clk 0:01:42.7]} 21... Qb3 {[%clk 0:01:49.3]} 22. Ra3 {[%clk 0:01:35.3]} 22...
Qb6 {[%clk 0:01:48.2]} 23. Nxe8 {[%clk 0:01:34.3]} 23... Rxe8 {[%clk 0:01:49.1]}
24. Rfa1 {[%clk 0:01:32.5]} 24... Nc5 {[%clk 0:01:46.2]} 25. Be3 {[%clk
0:01:31.4]} 25... Qd6 {[%clk 0:01:43.1]} 26. Qc2 {[%clk 0:01:24.9]} 26... Nf6
{[%clk 0:01:40.6]} 27. Ra7 {[%clk 0:01:13.8]} 27... Bc8 {[%clk 0:01:28.2]} 28.
Nd2 {[%clk 0:01:08.4]} 28... Nfd7 {[%clk 0:01:17.8]} 29. b4 {[%clk 0:01:05.5]}
29... Nb7 {[%clk 0:01:17]} 30. Qb3 {[%clk 0:00:58.8]} 30... f5 {[%clk
0:01:12.9]} 31. f3 {[%clk 0:00:59.4]} 31... Kh8 {[%clk 0:01:09.5]} 32. c4 {[%clk
0:00:59.3]} 32... Qb8 {[%clk 0:01:04.9]} 33. c5 {[%clk 0:00:52.2]} 33... Nf6
{[%clk 0:01:05]} 34. Ra8 {[%clk 0:00:34.2]} 34... Qc7 {[%clk 0:01:05]} 35. c6
{[%clk 0:00:34.8]} 35... Nd6 {[%clk 0:01:02.2]} 36. b5 {[%clk 0:00:35.4]} 36...
fxe4 {[%clk 0:00:59.2]} 37. b6 {[%clk 0:00:35]} 37... Qe7 {[%clk 0:00:59]} 38.
b7 {[%clk 0:00:30.8]} 38... Bxb7 {[%clk 0:00:54.2]} 39. cxb7 {[%clk 0:00:31.7]}
39... Nxb7 {[%clk 0:00:54]} 40. Rxe8+ {[%clk 0:00:25.2]} 40... Nxe8 {[%clk
0:00:54.9]} 41. Ra7 {[%clk 0:00:25.4]} 41... Ned6 {[%clk 0:00:54.3]} 42. Nxe4
{[%clk 0:00:22.6]} 1-0

[Event "Early-Titled-Tuesday-Blitz-March-05-2024"]
[Site "Chess.com"]
[Date "2024.03.05"]
[Round "3"]
[White "Kotlyar_K"]
[Black "Balla_Tamas"]
[Result "1-0"]
[WhiteElo "2599"]
[BlackElo "2430"]
[TimeControl "180+1"]
[EndTime "8:30:36 PST"]
[Termination "Kotlyar_K won by resignation"]

1. d4 {[%clk 0:03:00.9]} 1... d5 {[%clk 0:02:43.9]} 2. c4 {[%clk 0:03:00.5]}
2... e6 {[%clk 0:02:43.5]} 3. Nc3 {[%clk 0:03:00.4]} 3... c5 {[%clk 0:02:43.9]}
4. cxd5 {[%clk 0:02:58.9]} 4... exd5 {[%clk 0:02:44.2]} 5. Nf3 {[%clk
0:02:57.2]} 5... Nc6 {[%clk 0:02:44.3]} 6. g3 {[%clk 0:02:56.2]} 6... Nf6 {[%clk
0:02:43.4]} 7. Bg2 {[%clk 0:02:56.7]} 7... cxd4 {[%clk 0:02:44]} 8. Nxd4 {[%clk
0:02:56.8]} 8... Bc5 {[%clk 0:02:44.6]} 9. Nxc6 {[%clk 0:02:56.6]} 9... bxc6
{[%clk 0:02:44.7]} 10. O-O {[%clk 0:02:57.3]} 10... O-O {[%clk 0:02:44.4]} 11.
Qc2 {[%clk 0:02:57.2]} 11... Bb6 {[%clk 0:02:42]} 12. Na4 {[%clk 0:02:54.4]}
12... Bd7 {[%clk 0:02:33.8]} 13. Nc5 {[%clk 0:02:35.8]} 13... Re8 {[%clk
0:02:29.8]} 14. Be3 {[%clk 0:02:17.7]} 14... Rxe3 {[%clk 0:01:35.4]} 15. fxe3
{[%clk 0:02:17.4]} 15... Qe7 {[%clk 0:01:35.3]} 16. Nxd7 {[%clk 0:02:14.5]}
16... Qxd7 {[%clk 0:01:19.8]} 17. Kh1 {[%clk 0:02:11.6]} 17... Bxe3 {[%clk
0:00:58.5]} 18. Rad1 {[%clk 0:02:03.3]} 18... Re8 {[%clk 0:00:57.2]} 19. b4
{[%clk 0:01:59.8]} 19... Ng4 {[%clk 0:00:47.1]} 20. b5 {[%clk 0:01:27.2]} 20...
cxb5 {[%clk 0:00:20.7]} 21. Rxd5 {[%clk 0:00:58.7]} 21... Qe6 {[%clk 0:00:21]}
22. Rdf5 {[%clk 0:00:55.1]} 22... Bb6 {[%clk 0:00:20.4]} 23. Bd5 {[%clk
0:00:39.7]} 23... Qxe2 {[%clk 0:00:15.1]} 24. Bxf7+ {[%clk 0:00:37.8]} 24... Kh8
{[%clk 0:00:14.9]} 25. Bxe8 {[%clk 0:00:36]} 25... Nf2+ {[%clk 0:00:03.2]} 26.
R5xf2 {[%clk 0:00:35.5]} 1-0

[Event "Early-Titled-Tuesday-Blitz-March-05-2024"]
[Site "Chess.com"]
[Date "2024.03.05"]
[Round "3"]
[White "Vaathi_Coming"]
[Black "IlanSchnaider"]
[Result "1-0"]
[WhiteElo "2895"]
[BlackElo "2657"]
[TimeControl "180+1"]
[EndTime "8:30:38 PST"]
[Termination "Vaathi_Coming won by checkmate"]

1. d4 {[%clk 0:03:00.9]} 1... d5 {[%clk 0:02:59.5]} 2. Nc3 {[%clk 0:03:01.2]}
2... Nf6 {[%clk 0:02:59.3]} 3. Bf4 {[%clk 0:03:01.1]} 3... c5 {[%clk 0:02:59.6]}
4. e3 {[%clk 0:03:01.3]} 4... cxd4 {[%clk 0:02:59.8]} 5. exd4 {[%clk 0:03:01.5]}
5... a6 {[%clk 0:03:00.5]} 6. Nf3 {[%clk 0:03:00.4]} 6... Nc6 {[%clk 0:03:00.7]}
7. Ne5 {[%clk 0:02:59.1]} 7... Bd7 {[%clk 0:03:01]} 8. g4 {[%clk 0:02:56.6]}
8... h6 {[%clk 0:02:58.7]} 9. h4 {[%clk 0:02:47]} 9... e6 {[%clk 0:02:54.7]} 10.
Nxd7 {[%clk 0:02:41.2]} 10... Qxd7 {[%clk 0:02:54.3]} 11. a3 {[%clk 0:02:27.7]}
11... Bd6 {[%clk 0:02:53.2]} 12. Be3 {[%clk 0:02:27.6]} 12... e5 {[%clk
0:02:41.6]} 13. Bh3 {[%clk 0:02:09.1]} 13... Qe7 {[%clk 0:01:29]} 14. g5 {[%clk
0:02:07.5]} 14... exd4 {[%clk 0:00:57.5]} 15. gxf6 {[%clk 0:02:05.9]} 15... Qe5
{[%clk 0:00:58.2]} 16. Qg4 {[%clk 0:01:11.4]} 16... gxf6 {[%clk 0:00:22.6]} 17.
O-O-O {[%clk 0:01:08.5]} 17... dxc3 {[%clk 0:00:22.2]} 18. Rde1 {[%clk
0:01:00.8]} 18... cxb2+ {[%clk 0:00:22.4]} 19. Kb1 {[%clk 0:01:00.7]} 19... Kf8
{[%clk 0:00:10.1]} 20. Rhg1 {[%clk 0:00:50.2]} 20... f5 {[%clk 0:00:09.7]} 21.
Bxh6+ {[%clk 0:00:50]} 21... Rxh6 {[%clk 0:00:09.3]} 22. Qg8+ {[%clk 0:00:50]}
22... Ke7 {[%clk 0:00:08.5]} 23. Rxe5+ {[%clk 0:00:50]} 23... Bxe5 {[%clk
0:00:03.9]} 24. Qxa8 {[%clk 0:00:50.9]} 24... Na5 {[%clk 0:00:02.1]} 25. Rg8
{[%clk 0:00:37.1]} 25... Nc4 {[%clk 0:00:01.3]} 26. Qd8+ {[%clk 0:00:35.8]}
26... Ke6 {[%clk 0:00:01.7]} 27. Re8# {[%clk 0:00:36.5]} 1-0

[Event "Early-Titled-Tuesday-Blitz-March-05-2024"]
[Site "Chess.com"]
[Date "2024.03.05"]
[Round "3"]
[White "JG-17"]
[Black "Gennady_Kozlov"]
[Result "1-0"]
[WhiteElo "2494"]
[BlackElo "2663"]
[TimeControl "180+1"]
[EndTime "8:30:41 PST"]
[Termination "JG-17 won by resignation"]

1. e4 {[%clk 0:02:55.9]} 1... c6 {[%clk 0:02:56.5]} 2. Nc3 {[%clk 0:02:53.4]}
2... d5 {[%clk 0:02:55.5]} 3. Nf3 {[%clk 0:02:53.3]} 3... Bg4 {[%clk 0:02:52.5]}
4. h3 {[%clk 0:02:52.1]} 4... Bxf3 {[%clk 0:02:51.6]} 5. Qxf3 {[%clk 0:02:52.4]}
5... e6 {[%clk 0:02:51.8]} 6. d3 {[%clk 0:02:52.2]} 6... Nf6 {[%clk 0:02:50.7]}
7. g4 {[%clk 0:02:50]} 7... Be7 {[%clk 0:02:49.9]} 8. Bd2 {[%clk 0:02:45.2]}
8... Qb6 {[%clk 0:02:45.9]} 9. O-O-O {[%clk 0:02:43.7]} 9... a5 {[%clk
0:02:43.9]} 10. g5 {[%clk 0:02:39]} 10... Nfd7 {[%clk 0:02:42.4]} 11. h4 {[%clk
0:02:33.7]} 11... a4 {[%clk 0:02:40.8]} 12. a3 {[%clk 0:02:30.7]} 12... Na6
{[%clk 0:02:37.9]} 13. h5 {[%clk 0:02:26.7]} 13... Nac5 {[%clk 0:02:34.1]} 14.
g6 {[%clk 0:02:16.7]} 14... hxg6 {[%clk 0:02:32.1]} 15. hxg6 {[%clk 0:02:15.1]}
15... Rxh1 {[%clk 0:02:30.5]} 16. gxf7+ {[%clk 0:02:02.6]} 16... Kf8 {[%clk
0:02:21.5]} 17. Qxh1 {[%clk 0:02:02.4]} 17... Kxf7 {[%clk 0:02:20.6]} 18. Qh5+
{[%clk 0:02:00.7]} 18... Kg8 {[%clk 0:02:16]} 19. Bh3 {[%clk 0:01:53.3]} 19...
Nf6 {[%clk 0:02:14.6]} 20. Qg6 {[%clk 0:01:50.4]} 20... Rf8 {[%clk 0:01:37.6]}
21. d4 {[%clk 0:01:46.5]} 21... Nfxe4 {[%clk 0:01:24.3]} 22. dxc5 {[%clk
0:01:42.1]} 22... Nxc5 {[%clk 0:01:25.2]} 23. Bxe6+ {[%clk 0:01:35.8]} 23...
Nxe6 {[%clk 0:01:24.3]} 24. Qxe6+ {[%clk 0:01:36.3]} 24... Rf7 {[%clk 0:01:24]}
25. Be3 {[%clk 0:01:27.8]} 25... Qc7 {[%clk 0:01:15]} 26. Rh1 {[%clk 0:01:27]}
26... b5 {[%clk 0:01:07.6]} 27. Rh8+ {[%clk 0:00:55.9]} 27... Kxh8 {[%clk
0:01:06.9]} 28. Qxf7 {[%clk 0:00:56.6]} 28... Qe5 {[%clk 0:01:02.4]} 29. Ne2
{[%clk 0:00:52.5]} 29... Bf6 {[%clk 0:00:57.5]} 30. c3 {[%clk 0:00:42.9]} 30...
c5 {[%clk 0:00:55.3]} 31. Nf4 {[%clk 0:00:38.2]} 31... Qf5 {[%clk 0:00:30.2]}
32. Qxd5 {[%clk 0:00:33.6]} 32... Qg4 {[%clk 0:00:28.2]} 33. Qh5+ {[%clk
0:00:30.8]} 33... Qxh5 {[%clk 0:00:27.9]} 34. Nxh5 {[%clk 0:00:31.7]} 34... Be7
{[%clk 0:00:28]} 35. Nf4 {[%clk 0:00:31.8]} 35... b4 {[%clk 0:00:27.1]} 36. Ng6+
{[%clk 0:00:27.1]} 1-0

[Event "Early-Titled-Tuesday-Blitz-March-05-2024"]
[Site "Chess.com"]
[Date "2024.03.05"]
[Round "3"]
[White "GoValya"]
[Black "stasOR4ik"]
[Result "1-0"]
[WhiteElo "2250"]
[BlackElo "2428"]
[TimeControl "180+1"]
[EndTime "8:30:42 PST"]
[Termination "GoValya won by checkmate"]

1. d4 {[%clk 0:03:00.9]} 1... Nf6 {[%clk 0:02:49.2]} 2. c4 {[%clk 0:03:00.7]}
2... e6 {[%clk 0:02:49.7]} 3. g3 {[%clk 0:03:00.2]} 3... d5 {[%clk 0:02:49.6]}
4. Bg2 {[%clk 0:02:59.9]} 4... c5 {[%clk 0:02:50.1]} 5. Nf3 {[%clk 0:03:00]}
5... Nc6 {[%clk 0:02:48.8]} 6. cxd5 {[%clk 0:02:58.6]} 6... exd5 {[%clk
0:02:46.8]} 7. O-O {[%clk 0:02:59.2]} 7... Bg4 {[%clk 0:02:45.1]} 8. Ne5 {[%clk
0:02:58.6]} 8... Nxe5 {[%clk 0:02:43.7]} 9. dxe5 {[%clk 0:02:59]} 9... Nd7
{[%clk 0:02:26.8]} 10. Qxd5 {[%clk 0:02:48.6]} 10... Be7 {[%clk 0:02:19.6]} 11.
Qxb7 {[%clk 0:02:44.2]} 11... Rb8 {[%clk 0:02:19.1]} 12. Qe4 {[%clk 0:02:43.6]}
12... Rb4 {[%clk 0:02:16.1]} 13. Qc2 {[%clk 0:02:21.4]} 13... Nxe5 {[%clk
0:02:11.1]} 14. Bf4 {[%clk 0:02:14.6]} 14... Ng6 {[%clk 0:02:01.6]} 15. Bc6+
{[%clk 0:02:06.2]} 15... Kf8 {[%clk 0:02:01.6]} 16. Be3 {[%clk 0:01:55.8]} 16...
Qb6 {[%clk 0:01:45.2]} 17. Bg2 {[%clk 0:01:40.3]} 17... Rxb2 {[%clk 0:01:44.5]}
18. Qe4 {[%clk 0:01:18.8]} 18... Bxe2 {[%clk 0:01:44.4]} 19. Re1 {[%clk
0:01:11.2]} 19... Ba6 {[%clk 0:01:36.9]} 20. Nc3 {[%clk 0:01:02.2]} 20... Bb7
{[%clk 0:01:12.3]} 21. Nd5 {[%clk 0:00:59]} 21... Bxd5 {[%clk 0:01:06.6]} 22.
Qxd5 {[%clk 0:00:58.9]} 22... h5 {[%clk 0:00:58.7]} 23. Rac1 {[%clk 0:00:54.1]}
23... h4 {[%clk 0:00:22.8]} 24. Bxc5 {[%clk 0:00:48.1]} 24... Bxc5 {[%clk
0:00:22.8]} 25. Rxc5 {[%clk 0:00:43.9]} 25... Ne7 {[%clk 0:00:22.7]} 26. Qe5
{[%clk 0:00:28.7]} 26... Qf6 {[%clk 0:00:10.7]} 27. Rc8+ {[%clk 0:00:24.2]}
27... Nxc8 {[%clk 0:00:07.6]} 28. Qe8# {[%clk 0:00:24.2]} 1-0